bitfinex/quotes_SOLUSD_20251120
["timestamp","ask_amount","ask_price","bid_price","bid_amount"]
[1763600945234,0.1,138.9,138.89,6.67356329]
[1763600945812,0.1,138.9,138.87,1.74]
[1763600945813,0.1,138.9,138.88,6.67356329]
[1763600947051,0.1,138.9,138.87,1.74]
[1763600947338,0.1,138.9,138.88,6.67356329]
[1763600947518,0.1,138.9,138.87,8.41356329]
[1763600947711,7.42356329,138.9,138.85,6.67356329]
[1763600947910,7.42356329,138.9,138.84,1.74]
[1763600947911,0.75,138.9,138.86,6.67356329]
[1763600948240,0.65,138.89,138.86,6.67356329]
[1763600948812,0.65,138.89,138.84,8.94234964]
[1763600948813,0.65,138.89,138.84,1.74]
[1763600949344,0.65,138.89,138.84,8.41356329]
[1763600949732,7.32356329,138.89,138.8,7.90445581]
[1763600950039,7.20046082,138.88,138.83,6.67356329]
[1763600950240,27.59161289,138.88,138.82,6.67356329]
[1763600950537,0.65,138.87,138.82,6.67356329]
[1763600950741,0.1,138.9,138.86,6.67356329]
[1763600951055,0.1,138.9,138.83,0.7]
[1763600951056,0.1,138.9,138.89,6.67356329]
[1763600951631,0.1,138.9,138.89,7.37356329]
[1763600952017,0.1,138.9,138.89,14.57350569]
[1763600955219,0.1,138.9,138.89,6.67356329]
[1763600955628,0.1,138.9,138.89,7.37356329]
[1763600956423,2.03593088,138.91,138.89,8.09355753]
[1763600956627,2.03593088,138.91,138.9,2.44]
[1763600956821,2.03593088,138.91,138.9,9.11356329]
[1763600957429,2.03593088,138.91,138.9,8.41356329]
[1763600957636,2.03593088,138.91,138.9,9.11356329]
[1763600958231,2.03593088,138.91,138.9,16.31298733]
[1763600959713,2.03593088,138.91,138.9,8.41356329]
[1763600960233,2.03593088,138.91,138.9,15.61298733]
[1763600961449,2.03593088,138.91,138.9,16.27298733]
[1763600962546,7.87512798,138.99,138.9,52.39250744]
[1763600962728,7.87512798,138.99,138.95,6.67356329]
[1763600962729,0.68,138.98,138.95,6.67356329]
[1763600963334,0.68,138.98,138.93,1.74]
[1763600963335,0.68,138.98,138.94,6.67356329]
[1763600964745,7.87563894,138.98,138.94,6.67356329]
[1763600965043,7.87563894,138.98,138.95,6.67356329]
[1763600965228,0.68,138.97,138.95,6.67356329]
[1763600965733,7.19457422,139.0,138.96,6.67356329]
[1763600965924,0.68,138.99,138.95,6.67356329]
[1763600966940,7.8750025,138.99,138.95,6.67356329]
[1763600967325,0.71,138.98,138.94,6.67356329]
[1763600968357,6.67356329,138.97,138.87,0.68]
[1763600968661,6.67356329,138.97,138.91,6.67356329]
[1763600968836,0.71,138.96,138.93,6.67356329]
[1763600969144,0.71,138.96,138.92,6.67356329]
[1763600969652,0.71,138.96,138.9,7.19924216]
[1763600970014,0.71,138.96,138.92,6.67356329]
[1763600970219,7.9064794,138.96,138.92,6.67356329]
[1763600970745,0.71,138.95,138.91,6.67356329]
[1763600970947,0.71,138.95,138.9,11.56891169]
[1763600971553,0.71,138.95,138.89,13.30891169]
[1763600971730,0.71,138.95,138.9,11.56891169]
[1763600972326,0.71,138.95,138.89,13.30891169]
[1763600972534,7.19735137,138.94,138.89,13.30891169]
[1763600972729,7.19735137,138.94,138.9,11.56891169]
[1763600972937,0.71,138.96,138.91,11.56891169]
[1763600973136,0.71,138.95,138.91,11.56891169]
[1763600973538,0.71,138.95,138.92,11.56891169]
[1763600975538,25.8989777,138.95,138.89,62.1]
[1763600975745,13.30891169,138.94,138.88,11.56891169]
[1763600975940,0.71,138.93,138.88,11.56891169]
[1763600976183,0.71,138.93,138.87,11.56891169]
[1763600976353,0.71,138.93,138.86,62.1]
[1763600976544,12.27891169,138.93,138.86,11.56891169]
[1763600976734,25.19435646,138.92,138.85,8.9418834]
[1763600977060,25.90435646,138.92,138.85,1.74]
[1763600977229,11.56891169,138.9,138.83,11.56891169]
[1763600977433,13.30891169,138.89,138.83,11.56891169]
[1763600977838,0.71,138.88,138.83,11.56891169]
[1763600978159,2.45,138.9,138.86,11.56891169]
[1763600978340,0.71,138.89,138.86,11.56891169]
[1763600978950,0.71,138.89,138.86,18.77036013]
[1763600979137,7.9091023,138.91,138.87,11.56891169]
[1763600979668,0.71,138.9,138.87,11.56891169]
[1763600980162,0.71,138.92,138.88,11.56891169]
[1763600980668,0.71,138.92,138.89,11.56891169]
[1763600980971,7.90883767,138.92,138.88,11.56891169]
[1763600981466,0.71,138.91,138.88,11.56891169]
[1763600982659,0.71,138.91,138.88,18.76933816]
[1763600982844,0.71,138.91,138.88,11.56891169]
[1763600983363,0.71,138.91,138.87,7.88058176]
[1763600983364,0.71,138.91,138.87,19.44949345]
[1763600983734,7.90898773,138.91,138.87,18.76949345]
[1763600984650,0.71,138.9,138.87,18.76949345]
[1763600985058,0.71,138.9,138.85,63.84]
[1763600985258,12.27891169,138.9,138.84,11.56891169]
[1763600985640,0.71,138.89,138.84,18.77140206]
[1763600986067,0.71,138.89,138.84,11.56891169]
[1763600986256,7.20046082,138.88,138.84,11.56891169]
[1763600986644,0.71,138.87,138.83,18.77184122]
[1763600986965,0.71,138.87,138.84,11.56891169]
[1763600987140,7.20011034,138.89,138.85,11.56891169]
[1763600987347,8.94011034,138.89,138.85,11.56891169]
[1763600987547,0.71,138.88,138.84,11.56891169]
[1763600988235,7.91049866,138.88,138.84,11.56891169]
[1763600988436,7.91049866,138.88,138.84,18.77144605]
[1763600988639,0.71,138.88,138.86,11.56891169]
[1763600988841,17.99663159,138.92,138.86,11.56891169]
[1763600988842,0.71,138.9,138.86,11.56891169]
[1763600989735,0.71,138.9,138.86,0.68]
[1763600989961,0.71,138.9,138.87,11.56891169]
[1763600990466,7.85786943,138.93,138.89,11.56891169]
[1763600990969,0.66,138.92,138.89,11.56891169]
[1763600991559,7.857424,138.94,138.9,11.56891169]
[1763600991865,0.66,138.94,138.9,11.56891169]
[1763600992049,7.85736758,138.94,138.9,11.56891169]
[1763600992457,0.66,138.93,138.9,11.56891169]
[1763600993251,1.74,138.95,138.9,11.56891169]
[1763600993252,7.85695838,138.95,138.91,11.56891169]
[1763600993754,0.66,138.95,138.91,20.507456]
[1763600995378,0.66,138.97,138.92,11.56891169]
[1763600995684,0.66,138.97,138.94,7.19735137]
[1763600995861,0.66,138.97,138.93,18.76661552]
[1763600996060,7.85589697,138.97,138.92,18.76708192]
[1763600996557,29.55648239,138.99,138.92,18.76708192]
[1763600996558,0.66,138.96,138.92,18.76708192]
[1763600997473,0.66,138.96,138.92,19.45708192]
[1763600997681,0.66,138.96,138.93,11.56891169]
[1763600997867,0.66,138.96,138.93,13.30891169]
[1763600999489,0.66,138.99,138.94,12.25891169]
[1763600999659,7.1949298,138.99,138.95,7.19683339]
[1763600999980,0.66,138.98,138.95,7.19683339]
[1763601000682,7.85426852,139.0,138.95,21.17574508]
[1763601000986,7.19426852,139.0,138.95,20.48574508]
[1763601001217,0.66,138.99,138.95,20.48574508]
[1763601001370,0.66,138.99,138.96,11.56891169]
[1763601002161,0.66,138.99,138.96,18.76522543]
[1763601002575,0.66,138.99,138.96,7.19631374]
[1763601002771,31.27268089,139.02,138.96,7.19631374]
[1763601002772,0.66,139.03,138.98,11.56891169]
[1763601003003,0.66,139.03,138.99,11.56891169]
[1763601003312,0.66,139.05,139.01,11.56891169]
[1763601003471,0.66,139.04,139.01,1.72]
[1763601003669,0.66,139.04,138.99,13.28891169]
[1763601003980,7.85264381,139.04,138.99,13.28891169]
[1763601004176,7.85264381,139.04,139.0,11.56891169]
[1763601004382,0.66,139.03,139.0,11.56891169]
[1763601005482,0.66,139.03,139.0,18.76311251]
[1763601005867,7.8517741,139.05,139.01,11.56891169]
[1763601006395,0.66,139.04,139.01,11.56891169]
[1763601006579,0.66,139.05,139.02,13.28891169]
[1763601007304,7.85206582,139.05,139.02,1.72]
[1763601007473,7.85166381,139.05,139.02,1.72]
[1763601007676,0.66,139.04,139.02,1.72]
[1763601008512,7.90096935,139.06,139.02,1.72]
[1763601008685,0.66,139.05,139.02,13.28891169]
[1763601009582,0.04963755,139.06,139.04,11.56891169]
[1763601009876,0.04963755,139.06,139.02,9.6031243]
[1763601009877,0.04963755,139.06,139.05,11.56891169]
[1763601010321,0.04963755,139.06,139.05,13.28891169]
[1763601011707,0.04963755,139.06,139.05,21.17056936]
[1763601014025,0.04963755,139.06,139.05,49.08035705]
[1763601014910,0.04963755,139.06,139.05,21.17056936]
[1763601015117,0.04963755,139.06,139.05,9.60165767]
[1763601015297,0.04963755,139.06,139.05,21.17056936]
[1763601015935,0.04963755,139.06,139.04,11.56891169]
[1763601016109,0.04963755,139.06,139.05,11.56891169]
[1763601017121,0.70963755,139.06,139.05,11.56891169]
[1763601017514,0.70963755,139.06,139.03,13.28891169]
[1763601017515,7.90086796,139.06,139.03,13.28891169]
[1763601017902,0.70963755,139.06,139.04,11.56891169]
[1763601018431,0.04963755,139.06,139.04,11.56891169]
[1763601018635,0.04963755,139.06,139.05,11.56891169]
[1763601018814,0.04963755,139.06,139.05,13.28891169]
[1763601019636,0.04963755,139.06,139.05,20.48056936]
[1763601020805,0.04963755,139.06,139.05,13.26272511]
[1763601021026,0.04963755,139.06,139.05,6.07106744]
[1763601021612,0.04963755,139.06,139.05,1.72]
[1763601021818,0.72963755,139.06,139.04,4.35106744]
[1763601022705,0.72963755,139.06,139.03,4.35106744]
[1763601022912,0.72963755,139.06,139.04,4.35106744]
[1763601024146,0.04963755,139.06,139.05,6.07106744]
[1763601025155,0.04963755,139.06,139.05,1.72]
[1763601025442,0.04963755,139.06,139.05,6.07106744]
[1763601026614,0.04963755,139.06,139.05,1.72]
[1763601026938,0.71963755,139.06,139.03,11.54509629]
[1763601027121,7.91104928,139.06,139.03,11.54509629]
[1763601027518,0.67,139.05,139.03,11.54509629]
[1763601027722,12.21509629,139.05,138.98,0.66]
[1763601027936,12.21509629,139.05,139.0,11.54509629]
[1763601028127,0.67,139.04,139.0,11.54509629]
[1763601028809,0.67,139.04,138.99,1.72]
[1763601029013,0.67,139.04,139.0,11.54509629]
[1763601029241,7.86256488,139.04,138.99,20.45980171]
[1763601029628,0.67,139.03,138.99,11.54509629]
[1763601029831,12.21509629,139.03,138.98,11.54509629]
[1763601030240,0.67,139.02,138.98,11.54509629]
[1763601030923,0.67,139.02,138.99,6.63782272]
[1763601031241,7.86332593,139.02,138.99,6.63782272]
[1763601031745,0.67,139.01,138.99,6.63782272]
[1763601032323,7.86382107,139.01,138.98,6.63782272]
[1763601032548,0.67,139.01,139.0,6.63782272]
[1763601032757,0.67,139.01,138.99,6.63782272]
[1763601033251,0.67,139.01,139.0,6.63782272]
[1763601033456,0.67,139.04,139.0,8.35782272]
[1763601033641,0.67,139.04,139.02,6.63782272]
[1763601035158,0.71963755,139.06,139.02,7.19271924]
[1763601035455,0.67,139.05,139.03,6.63782272]
[1763601036859,0.67,139.05,139.0,1.72]
[1763601037060,25.84100754,139.05,139.01,6.63782272]
[1763601037431,0.67,139.04,139.01,6.63782272]
[1763601037847,0.67,139.04,139.02,6.63782272]
[1763601038139,0.67,139.04,139.01,6.63782272]
[1763601038453,7.86237616,139.04,139.01,6.63782272]
[1763601038851,0.67,139.03,139.01,6.63782272]
[1763601040353,0.67,139.03,139.0,8.91423118]
[1763601040661,0.67,139.03,139.01,6.63782272]
[1763601041136,7.86271233,139.03,139.01,6.63782272]
[1763601041661,0.67,139.02,139.01,6.63782272]
[1763601041846,0.67,139.02,139.0,8.35782272]
[1763601042247,0.67,139.02,139.01,6.63782272]
[1763601043247,7.86320961,139.02,139.0,1.72]
[1763601043446,0.67,139.02,138.98,6.63782272]
[1763601043655,0.67,139.01,138.99,6.63782272]
[1763601046275,0.67,139.01,138.97,8.91558919]
[1763601046569,0.67,139.01,138.99,6.63782272]
[1763601046757,0.67,139.01,138.99,2.78744091]
[1763601048309,7.86374578,139.01,138.98,2.78744091]
[1763601048598,0.67,139.0,138.98,2.78744091]
[1763601048766,0.67,139.0,138.99,2.78744091]
[1763601048972,0.67,139.0,138.97,4.50744091]
[1763601049166,20.76969724,139.03,138.98,2.78744091]
[1763601049167,7.19303577,139.03,138.98,2.78744091]
[1763601049373,0.67,139.02,138.99,2.78744091]
[1763601050062,0.67,139.02,138.98,2.78744091]
[1763601050278,0.67,139.02,138.99,7.19476221]
[1763601050666,7.86325819,139.02,138.98,7.19506297]
[1763601050888,7.86325819,139.02,138.98,9.98250388]
[1763601051087,0.65,139.01,138.98,9.98250388]
[1763601051988,0.65,139.01,138.98,2.78744091]
[1763601052486,7.84373452,139.01,138.97,4.50744091]
[1763601052868,0.65,139.0,138.97,11.70320376]
[1763601053571,8.912829,139.03,138.98,2.78744091]
[1763601053770,0.65,139.03,139.0,2.78744091]
[1763601053982,0.65,139.02,139.0,2.78744091]
[1763601054595,0.65,139.05,139.01,10.65116797]
[1763601054896,0.65,139.05,139.01,27.96548564]
[1763601055980,0.65,139.05,139.01,25.17804473]
[1763601056192,0.65,139.05,139.01,27.96548564]
[1763601057400,0.65,139.05,139.01,25.17804473]
[1763601058204,7.84172156,139.05,139.01,7.19372706]
[1763601058368,10.62916247,139.05,138.99,1.72]
[1763601058567,0.65,139.04,138.99,4.50744091]
[1763601058888,0.65,139.04,139.0,9.98168551]
[1763601059211,0.65,139.04,139.0,27.96729702]
[1763601060967,0.65,139.04,139.0,28.63729702]
[1763601061167,0.65,139.04,139.01,2.78744091]
[1763601062094,0.65,139.04,139.0,7.1942446]
[1763601062664,0.69963755,139.06,139.01,3.45744091]
[1763601062863,0.04963755,139.06,139.04,7.19217491]
[1763601063067,0.04963755,139.06,139.04,9.97961582]
[1763601063302,0.04963755,139.06,139.04,10.64961582]
[1763601063490,0.04963755,139.06,139.04,9.97961582]
[1763601063672,0.04963755,139.06,139.05,1.72]
[1763601064700,0.04963755,139.06,139.05,5.17744091]
[1763601064901,0.04963755,139.06,139.05,11.69909858]
[1763601065472,0.04963755,139.06,139.05,12.36909858]
[1763601066070,0.04963755,139.06,139.05,11.69909858]
[1763601066272,0.04963755,139.06,139.05,12.36909858]
[1763601068406,0.04963755,139.06,139.05,7.19165767]
[1763601068701,0.04963755,139.06,139.05,12.36909858]
[1763601069073,0.04963755,139.06,139.05,9.58165767]
[1763601069684,0.69963755,139.06,139.02,64.88744091]
[1763601069898,0.69963755,139.06,139.03,1.72]
[1763601070074,0.69963755,139.06,139.03,8.91247175]
[1763601075692,0.69963755,139.06,139.02,7.19298861]
[1763601075882,0.69963755,139.06,139.03,1.72]
[1763601078001,0.69963755,139.06,139.03,8.91263377]
[1763601079418,7.89087551,139.06,139.03,8.91263377]
[1763601079726,0.65,139.05,139.03,8.91263377]
[1763601080218,0.65,139.05,139.03,1.72]
[1763601082011,10.62921235,139.05,138.99,0.66]
[1763601082189,2.78744091,139.03,138.97,9.57579765]
[1763601082398,2.78744091,139.03,138.97,12.36323856]
[1763601082587,0.71,139.02,138.97,12.36323856]
[1763601083006,0.71,139.02,138.98,0.66]
[1763601083608,0.71,139.02,138.98,3.44744091]
[1763601083803,0.71,139.02,138.99,7.19476221]
[1763601084611,2.78744091,139.04,138.99,10.64220312]
[1763601084612,7.90231953,139.04,138.99,10.64220312]
[1763601084916,0.71,139.03,139.0,1.72]
[1763601086206,0.71,139.03,139.01,7.19372706]
[1763601087000,0.71,139.03,139.0,1.72]
[1763601087390,0.71,139.03,139.0,8.91423544]
[1763601087586,7.90281485,139.03,139.0,1.72]
[1763601087896,10.69025576,139.03,138.98,1.72]
[1763601088117,0.72,139.02,138.98,1.72]
[1763601088300,7.91368671,139.02,138.98,8.91516276]
[1763601088615,0.72,139.02,138.98,7.19516276]
[1763601088830,0.72,139.01,138.98,25.1833625]
[1763601089116,0.72,139.01,138.98,28.69080341]
[1763601090811,0.72,139.01,138.98,30.25855011]
[1763601091118,7.19217491,139.04,138.98,30.25855011]
[1763601091420,0.72,139.03,139.0,4.35518761]
[1763601091621,0.04963755,139.06,139.02,4.35518761]
[1763601091622,0.76963755,139.06,139.02,4.35518761]
[1763601091798,0.76963755,139.06,139.03,4.35518761]
[1763601092812,0.76963755,139.06,139.03,6.07518761]
[1763601093011,7.96082221,139.06,139.03,1.72]
[1763601093221,0.04963755,139.06,139.03,6.07518761]
[1763601093394,4.35518761,139.15,139.05,4.35518761]
[1763601093594,0.72,139.12,139.07,4.35518761]
[1763601093924,5.07518761,139.12,139.07,1.72]
[1763601094308,0.72,139.11,139.07,1.72]
[1763601095195,7.90865516,139.11,139.07,8.910493]
[1763601095734,0.72,139.1,139.07,8.910493]
[1763601096808,0.72,139.1,139.07,7.190493]
[1763601098239,0.72,139.1,139.07,11.54568061]
[1763601098403,0.72,139.1,139.08,4.35518761]
[1763601098597,0.72,139.1,139.07,11.54568061]
[1763601099220,0.72,139.12,139.09,4.35518761]
[1763601099423,7.18761275,139.13,139.09,4.35518761]
[1763601099424,0.72,139.11,139.09,4.35518761]
[1763601099608,0.72,139.11,139.08,4.35518761]
[1763601100015,0.72,139.11,139.07,7.820493]
[1763601100217,0.72,139.11,139.09,7.18958947]
[1763601100828,7.90859279,139.11,139.07,7.19026729]
[1763601101008,0.72,139.11,139.08,1.72]
[1763601101328,11.54343219,139.12,139.08,1.72]
[1763601101329,0.72,139.1,139.08,1.72]
[1763601102338,11.54285108,139.13,139.08,8.9098088]
[1763601102513,0.72,139.1,139.08,8.9098088]
[1763601106526,0.72,139.12,139.08,31.87026244]
[1763601106832,0.72,139.11,139.08,31.87026244]
[1763601107030,0.72,139.12,139.08,31.87026244]
[1763601107604,0.72,139.12,139.08,31.24026244]
[1763601107809,0.72,139.13,139.09,0.63]
[1763601108021,0.72,139.12,139.09,0.63]
[1763601108308,0.72,139.12,139.08,31.87026244]
[1763601108499,0.72,139.15,139.1,4.35518761]
[1763601108706,0.72,139.14,139.09,4.35518761]
[1763601109115,5.07518761,139.14,139.09,4.35518761]
[1763601109316,5.07518761,139.14,139.09,4.98518761]
[1763601109516,0.72,139.13,139.09,4.98518761]
[1763601110037,39.566717,139.17,139.1,12.17426021]
[1763601110210,4.35518761,139.15,139.11,1.72]
[1763601110540,12.24136837,139.16,139.11,1.72]
[1763601110722,0.7,139.15,139.11,1.72]
[1763601111216,0.7,139.15,139.12,7.1880391]
[1763601111806,11.54033634,139.18,139.12,12.17322671]
[1763601112011,0.7,139.16,139.12,12.17322671]
[1763601113020,0.7,139.16,139.12,11.54322671]
[1763601113220,0.7,139.16,139.12,12.17322671]
[1763601113628,0.7,139.16,139.13,4.35518761]
[1763601114440,0.7,139.16,139.13,11.54238369]
[1763601114828,0.7,139.16,139.13,7.18719608]
[1763601115035,0.1,139.19,139.15,4.35518761]
[1763601115225,0.1,139.19,139.18,4.35518761]
[1763601115418,0.1,139.19,139.18,1.72]
[1763601115621,0.8,139.19,139.16,1.72]
[1763601116361,0.8,139.19,139.16,8.90578605]
[1763601116546,0.8,139.19,139.16,1.72]
[1763601116728,7.98444277,139.19,139.16,1.72]
[1763601116937,0.8,139.19,139.16,1.72]
[1763601117822,7.98446531,139.19,139.16,1.72]
[1763601118027,7.98446531,139.19,139.13,0.63]
[1763601118028,12.33965292,139.19,139.15,1.72]
[1763601118227,0.7,139.18,139.15,1.72]
[1763601118422,7.88496962,139.18,139.15,1.72]
[1763601118638,12.24015723,139.18,139.14,1.72]
[1763601118882,0.7,139.17,139.14,1.72]
[1763601119833,0.7,139.17,139.13,11.54261967]
[1763601120041,0.7,139.17,139.13,13.26261967]
[1763601120243,7.88561782,139.17,139.12,11.54304234]
[1763601120420,7.88561782,139.17,139.12,13.26304234]
[1763601120628,0.7,139.16,139.12,13.26304234]
[1763601121132,5.05518761,139.16,139.12,1.72]
[1763601121636,0.7,139.15,139.12,1.72]
[1763601121948,0.7,139.15,139.12,6.07518761]
[1763601122321,0.7,139.15,139.12,1.72]
[1763601122666,0.7,139.15,139.12,6.07518761]
[1763601123315,0.7,139.15,139.13,4.35518761]
[1763601123523,5.15518761,139.19,139.14,4.35518761]
[1763601123930,0.7,139.18,139.14,4.35518761]
[1763601124332,0.7,139.18,139.14,11.54218668]
[1763601125255,7.88500074,139.18,139.14,11.54218668]
[1763601125851,0.7,139.17,139.14,11.54218668]
[1763601126356,0.1,139.19,139.16,4.35518761]
[1763601126560,0.1,139.19,139.17,4.98518761]
[1763601126947,0.1,139.19,139.18,6.70518761]
[1763601127148,1.93593088,139.2,139.18,6.70518761]
[1763601127451,17.95000695,139.28,139.19,19.02920291]
[1763601127452,14.06295641,139.27,139.19,19.02920291]
[1763601127666,0.7,139.28,139.26,4.35518761]
[1763601128272,0.7,139.28,139.24,1.72]
[1763601128273,0.7,139.28,139.25,4.35518761]
[1763601128562,0.7,139.28,139.24,6.07518761]
[1763601128735,0.7,139.28,139.26,4.35518761]
[1763601128944,0.7,139.28,139.24,8.90177327]
[1763601128945,7.87987941,139.28,139.24,13.25696088]
[1763601129143,7.87987941,139.28,139.24,1.72]
[1763601129368,4.35518761,139.25,139.2,1.72]
[1763601129575,5.05518761,139.27,139.22,4.35518761]
[1763601129758,0.7,139.26,139.22,4.35518761]
[1763601130381,7.88095271,139.26,139.22,4.35518761]
[1763601130550,7.88095271,139.26,139.23,4.35518761]
[1763601130859,0.7,139.25,139.22,4.35518761]
[1763601131177,0.1,139.29,139.24,4.35518761]
[1763601131479,0.7,139.28,139.24,4.35518761]
[1763601132045,0.7,139.28,139.23,6.07518761]
[1763601132380,0.7,139.28,139.21,25.14187198]
[1763601132381,7.8797921,139.28,139.25,4.35518761]
[1763601132551,7.8797921,139.28,139.23,4.35518761]
[1763601132877,0.7,139.27,139.23,4.35518761]
[1763601133037,0.7,139.27,139.21,1.72]
[1763601133243,5.05518761,139.27,139.21,8.90334492]
[1763601133471,5.05518761,139.27,139.22,4.35518761]
[1763601133650,0.7,139.26,139.22,4.35518761]
[1763601134379,7.88097334,139.26,139.23,4.35518761]
[1763601134555,0.7,139.26,139.21,8.90334492]
[1763601134875,0.7,139.25,139.23,11.51459159]
[1763601135054,0.7,139.28,139.24,11.51459159]
[1763601135865,7.87989979,139.28,139.24,18.69642077]
[1763601136068,7.87989979,139.28,139.24,7.18182918]
[1763601136276,0.7,139.27,139.24,18.69642077]
[1763601137061,7.88048503,139.27,139.21,19.67847999]
[1763601137261,0.7,139.26,139.23,11.51459159]
[1763601137709,12.21459159,139.26,139.2,7.18390804]
[1763601137881,0.7,139.26,139.23,1.72]
[1763601138177,0.7,139.25,139.23,1.72]
[1763601138556,11.51459159,139.24,139.14,57.51970016]
[1763601138764,11.51459159,139.24,139.18,11.51459159]
[1763601138979,0.7,139.23,139.19,11.51459159]
[1763601139162,7.88242945,139.23,139.19,11.51459159]
[1763601140055,0.72,139.22,139.19,11.51459159]
[1763601141581,0.72,139.22,139.18,1.72]
[1763601141786,7.90299794,139.22,139.18,13.23459159]
[1763601142194,0.72,139.21,139.18,13.23459159]
[1763601142401,0.72,139.21,139.19,11.51459159]
[1763601143784,0.72,139.21,139.19,18.69884037]
[1763601145694,0.72,139.21,139.18,8.90480033]
[1763601146009,0.72,139.21,139.18,20.41939192]
[1763601147016,11.51459159,139.19,139.05,114.09999999]
[1763601147204,11.51459159,139.13,139.08,18.704698]
[1763601147506,11.51459159,139.11,139.07,1.72]
[1763601147691,11.51459159,139.1,139.05,13.23459159]
[1763601148087,12.19459159,139.09,139.05,1.72]
[1763601148606,0.68,139.08,139.05,1.72]
[1763601149108,12.19459159,139.08,139.03,20.62716101]
[1763601149311,11.51459159,139.07,139.03,1.92]
[1763601149491,19.38571911,139.07,139.03,1.92]
[1763601149818,0.68,139.06,139.03,1.92]
[1763601150384,0.68,139.06,139.03,13.43459159]
[1763601150588,0.68,139.06,139.03,20.62708219]
[1763601150792,0.68,139.09,139.05,11.51459159]
[1763601151005,20.42333642,139.11,139.05,11.51459159]
[1763601151006,0.68,139.08,139.05,11.51459159]
[1763601151415,0.68,139.08,139.03,27.09422116]
[1763601151416,0.68,139.13,139.08,7.19010641]
[1763601151582,2.4,139.15,139.11,11.51459159]
[1763601151782,0.68,139.15,139.11,1.72]
[1763601151991,0.68,139.15,139.12,11.51459159]
[1763601152326,0.68,139.15,139.11,1.72]
[1763601152611,0.68,139.15,139.12,11.51459159]
[1763601152799,0.68,139.15,139.12,6.62438583]
[1763601153003,6.62438583,139.14,139.09,6.62438583]
[1763601153295,6.62438583,139.14,139.09,8.34438583]
[1763601153504,0.68,139.13,139.1,6.62438583]
[1763601154230,0.68,139.13,139.09,8.90931129]
[1763601154532,0.68,139.13,139.1,6.62438583]
[1763601155127,6.62438583,139.12,139.07,6.62438583]
[1763601155319,6.62438583,139.12,139.05,17.9787579]
[1763601155485,7.86855581,139.11,139.07,6.62438583]
[1763601155691,7.86855581,139.11,139.07,13.81488074]
[1763601155889,0.68,139.1,139.07,13.81488074]
[1763601156402,6.62438583,139.16,139.09,6.62438583]
[1763601156606,0.68,139.15,139.12,6.62438583]
[1763601157503,7.86653443,139.15,139.12,6.62438583]
[1763601157901,0.68,139.14,139.12,6.62438583]
[1763601158113,0.68,139.14,139.11,15.53283604]
[1763601160700,0.68,139.14,139.11,1.72]
[1763601160898,0.68,139.14,139.11,8.34438583]
[1763601161392,0.68,139.14,139.11,1.72]
[1763601161593,0.68,139.14,139.11,15.53284664]
[1763601162522,7.86702287,139.14,139.11,1.72]
[1763601162917,0.68,139.13,139.11,1.72]
[1763601163424,6.62438583,139.12,139.06,17.97726773]
[1763601163716,6.62438583,139.12,139.07,8.34438583]
[1763601163893,0.68,139.11,139.07,8.34438583]
[1763601165017,0.68,139.11,139.07,8.91021068]
[1763601165227,0.68,139.11,139.08,6.62438583]
[1763601166406,0.68,139.11,139.07,8.91021068]
[1763601168129,7.86860618,139.11,139.07,15.53459651]
[1763601168431,7.86860618,139.11,139.07,15.53498406]
[1763601168629,0.68,139.1,139.07,15.53498406]
[1763601168816,0.68,139.1,139.07,8.91059823]
[1763601169021,0.68,139.1,139.07,15.53498406]
[1763601170039,7.86915383,139.1,139.07,1.72]
[1763601170535,0.68,139.09,139.07,1.72]
[1763601176543,0.68,139.09,139.07,4.50459767]
[1763601177238,0.68,139.09,139.07,1.72]
[1763601177434,0.68,139.09,139.07,4.50459767]
[1763601177636,7.86969361,139.09,139.07,1.72]
[1763601178025,0.68,139.08,139.04,7.19199273]
[1763601178234,0.68,139.08,139.05,1.72]
[1763601178544,0.68,139.08,139.05,4.50459767]